[Event "Klubbmästerskap 2025 Tisdag"]
[Site "Linköping, Sweden"]
[Date "2025.02.04"]
[Round "3.1"]
[White "Carlsson, Ingvar"]
[Black "Olsson, Simon"]
[Result "1-0"]
[TimeControl "90 min + 30 sec/move"]
[WhiteElo "1996"]
[BlackElo "2075"]

1. f4 {[%clk 01:30:45]} {[%emt 00:00:13]} d5 {[%clk 01:30:55]} {[%emt
00:00:07]} 2. b3 {[%clk 01:30:43]} {[%emt 00:00:31]} Nf6 {[%clk 01:30:25]}
{[%emt 00:01:01]} 3. Bb2 {[%clk 01:30:58]} {[%emt 00:00:15]} c5 {[%clk
01:30:32]} {[%emt 00:00:23]} 4. e3 {[%clk 01:30:32]} {[%emt 00:00:55]} g6
{[%clk 01:30:24]} {[%emt 00:00:39]} 5. Nf3 {[%clk 01:30:05]} {[%emt 00:00:56]}
Bg7 {[%clk 01:29:48]} {[%emt 00:01:07]} 6. Bb5+ {[%clk 01:30:01]} {[%emt
00:00:34]} Nc6 {[%clk 01:29:33]} {[%emt 00:00:45]} 7. Bxc6+ {[%clk 01:01:49]}
{[%emt 00:28:41]} bxc6 {[%clk 01:28:43]} {[%emt 00:01:20]} 8. O-O {[%clk
01:00:59]} {[%emt 00:01:19]} Ba6 {[%clk 01:18:19]} {[%emt 00:10:55]} 9. Re1
{[%clk 00:55:21]} {[%emt 00:06:08]} O-O {[%clk 01:13:36]} {[%emt 00:05:13]} 10.
Ne5 {[%clk 00:54:32]} {[%emt 00:01:19]} Qb6 {[%clk 01:13:00]} {[%emt 00:01:06]}
11. Nc3 {[%clk 00:45:46]} {[%emt 00:09:15]} c4 {[%clk 01:12:11]} {[%emt
00:01:20]} 12. Na4 {[%clk 00:44:08]} {[%emt 00:02:08]} Qb5 {[%clk 01:06:56]}
{[%emt 00:05:46]} 13. Bd4 {[%clk 00:41:17]} {[%emt 00:03:20]} Ne4 {[%clk
01:00:06]} {[%emt 00:07:21]} 14. Nd7 {[%clk 00:20:15]} {[%emt 00:21:32]} Rfd8
{[%clk 00:24:40]} {[%emt 00:35:55]} 15. Ndc5 {[%clk 00:16:17]} {[%emt
00:04:29]} Nxc5 {[%clk 00:18:07]} {[%emt 00:07:03]} 16. Nxc5 {[%clk 00:16:30]}
{[%emt 00:00:17]} cxb3 {[%clk 00:17:14]} {[%emt 00:01:23]} 17. axb3 {[%clk
00:16:26]} {[%emt 00:00:34]} Bc8 {[%clk 00:17:33]} {[%emt 00:00:11]} 18. Ra4
{[%clk 00:13:27]} {[%emt 00:03:29]} Bf5 {[%clk 00:15:44]} {[%emt 00:02:20]} 19.
d3 {[%clk 00:10:42]} {[%emt 00:03:14]} e5 {[%clk 00:07:03]} {[%emt 00:09:11]}
20. fxe5 {[%clk 00:10:31]} {[%emt 00:00:41]} Bf8 {[%clk 00:07:27]} {[%emt
00:00:07]} 21. Na6 {[%clk 00:07:19]} {[%emt 00:03:41]} c5 {[%clk 00:07:53]}
{[%emt 00:00:05]} 22. Bb2 {[%clk 00:06:46]} {[%emt 00:01:03]} Rac8 {[%clk
00:06:47]} {[%emt 00:01:36]} 23. Qa1 {[%clk 00:06:14]} {[%emt 00:01:01]} c4
{[%clk 00:05:15]} {[%emt 00:02:03]} 24. bxc4 {[%clk 00:04:35]} {[%emt
00:02:08]} dxc4 {[%clk 00:05:42]} {[%emt 00:00:03]} 25. e4 {[%clk 00:02:08]}
{[%emt 00:02:57]} c3 {[%clk 00:03:54]} {[%emt 00:02:17]} 26. Bc1 {[%clk
00:02:20]} {[%emt 00:00:19]} Qxe5 {[%clk 00:03:13]} {[%emt 00:01:11]} 27. Bg5
{[%clk 00:02:14]} {[%emt 00:00:36]} Re8 {[%clk 00:03:23]} {[%emt 00:00:20]} 28.
Be3 {[%clk 00:01:46]} {[%emt 00:00:57]} Bd7 {[%clk 00:02:31]} {[%emt 00:01:22]}
29. Ra5 {[%clk 00:01:43]} {[%emt 00:00:33]} Qe6 {[%clk 00:02:09]} {[%emt
00:00:53]} 30. Nc5 {[%clk 00:01:06]} {[%emt 00:01:06]} Bxc5 {[%clk 00:01:58]}
{[%emt 00:00:41]} 31. Rxc5 {[%clk 00:01:26]} {[%emt 00:00:10]} a6 {[%clk
00:00:52]} {[%emt 00:01:37]} 32. Rxc3 {[%clk 00:00:46]} {[%emt 00:01:10]} Rxc3
{[%clk 00:00:57]} {[%emt 00:00:24]} 33. Qxc3 {[%clk 00:01:15]} {[%emt
00:00:01]} Rc8 {[%clk 00:01:19]} {[%emt 00:00:08]} 34. Qb2 {[%clk 00:01:31]}
{[%emt 00:00:13]} Qc6 {[%clk 00:00:59]} {[%emt 00:00:50]} 35. Bh6 {[%clk
00:01:45]} {[%emt 00:00:15]} Qc3 {[%clk 00:01:06]} {[%emt 00:00:25]} 36. Qxc3
{[%clk 00:01:19]} {[%emt 00:00:56]} Rxc3 {[%clk 00:01:34]} {[%emt 00:00:01]} 37.
Rb1 {[%clk 00:01:24]} {[%emt 00:00:25]} Bb5 {[%clk 00:01:21]} {[%emt 00:00:43]}
38. Rb2 {[%clk 00:01:42]} {[%emt 00:00:11]} f6 {[%clk 00:01:14]} {[%emt
00:00:37]} 39. Bd2 {[%clk 00:01:20]} {[%emt 00:00:53]} Ra3 {[%clk 00:01:31]}
{[%emt 00:00:13]} 40. Kf2 {[%clk 00:01:36]} {[%emt 00:00:13]} Kf7 {[%clk
00:01:52]} {[%emt 00:00:10]} 41. Ke2 {[%clk 00:01:43]} {[%emt 00:00:23]} Ke6
{[%clk 00:01:17]} {[%emt 00:01:06]} 42. c4 {[%clk 00:01:35]} {[%emt 00:00:38]}
Bc6 {[%clk 00:01:46]} {[%emt 00:00:01]} 43. Ke3 {[%clk 00:01:40]} {[%emt
00:00:25]} Kd7 {[%clk 00:00:45]} {[%emt 00:01:31]} 44. Bb4 {[%clk 00:01:50]}
{[%emt 00:00:20]} Ra1 {[%clk 00:00:55]} {[%emt 00:00:20]} 45. Bc3 {[%clk
00:01:54]} {[%emt 00:00:25]} Rh1 {[%clk 00:01:14]} {[%emt 00:00:11]} 46. g3
{[%clk 00:02:01]} {[%emt 00:00:23]} Rf1 {[%clk 00:01:19]} {[%emt 00:00:25]} 47.
d4 {[%clk 00:01:21]} {[%emt 00:01:10]} Rc1 {[%clk 00:01:28]} {[%emt 00:00:21]}
48. Kd3 {[%clk 00:01:10]} {[%emt 00:00:41]} Bxe4+ {[%clk 00:01:44]} {[%emt
00:00:14]} 49. Kxe4 {[%clk 00:01:17]} {[%emt 00:00:23]} Rxc3 {[%clk 00:02:11]}
{[%emt 00:00:04]} 50. Kd5 {[%clk 00:01:32]} {[%emt 00:00:14]} Kc7 {[%clk
00:02:23]} {[%emt 00:00:18]} 51. c5 {[%clk 00:01:25]} {[%emt 00:00:37]} f5
{[%clk 00:01:30]} {[%emt 00:01:23]} 52. Re2 {[%clk 00:01:13]} {[%emt 00:00:41]}
Kd7 {[%clk 00:01:36]} {[%emt 00:00:25]} 53. Ra2 {[%clk 00:01:33]} {[%emt
00:00:10]} a5 {[%clk 00:00:39]} {[%emt 00:01:27]} 54. Rxa5 {[%clk 00:01:56]}
{[%emt 00:00:07]} Rc2 {[%clk 00:01:07]} {[%emt 00:00:02]} 55. Ra7+ {[%clk
00:02:15]} {[%emt 00:00:10]} 1-0

[Event "Klubbmästerskap 2025 Tisdag"]
[Site "Linköping, Sweden"]
[Date "2025.02.04"]
[Round "3.2"]
[White "Malm, Simon 1995"]
[Black "Rogoz, Vladyslav"]
[Result "1-0"]
[TimeControl "90 min + 30 sec/move"]
[WhiteElo "1976"]
[BlackElo "2099"]

1. d4 {[%clk 01:30:58]} {[%emt 00:00:02]} Nf6 {[%clk 01:22:41]} {[%emt
00:08:19]} 2. c4 {[%clk 01:31:14]} {[%emt 00:00:14]} e6 {[%clk 01:22:56]}
{[%emt 00:00:15]} 3. Nf3 {[%clk 01:31:00]} {[%emt 00:00:44]} Bb4+ {[%clk
01:23:09]} {[%emt 00:00:18]} 4. Bd2 {[%clk 01:31:12]} {[%emt 00:00:18]} Qe7
{[%clk 01:23:23]} {[%emt 00:00:15]} 5. a3 {[%clk 01:30:37]} {[%emt 00:01:05]}
Bxd2+ {[%clk 01:23:40]} {[%emt 00:00:14]} 6. Qxd2 {[%clk 01:30:20]} {[%emt
00:00:46]} O-O {[%clk 01:23:36]} {[%emt 00:00:34]} 7. Nc3 {[%clk 01:30:16]}
{[%emt 00:00:34]} d6 {[%clk 01:23:00]} {[%emt 00:01:06]} 8. g3 {[%clk
01:27:24]} {[%emt 00:03:22]} c6 {[%clk 01:22:45]} {[%emt 00:00:45]} 9. Bg2
{[%clk 01:26:55]} {[%emt 00:00:59]} Re8 {[%clk 01:22:32]} {[%emt 00:00:44]} 10.
O-O {[%clk 01:18:04]} {[%emt 00:09:20]} Nbd7 {[%clk 01:22:34]} {[%emt
00:00:27]} 11. e4 {[%clk 01:13:28]} {[%emt 00:05:07]} e5 {[%clk 01:22:27]}
{[%emt 00:00:37]} 12. b4 {[%clk 01:11:16]} {[%emt 00:02:41]} a5 {[%clk
01:18:22]} {[%emt 00:04:36]} 13. bxa5 {[%clk 01:09:49]} {[%emt 00:01:57]} Qd8
{[%clk 01:17:47]} {[%emt 00:01:05]} 14. d5 {[%clk 01:00:53]} {[%emt 00:09:27]}
Nc5 {[%clk 01:17:31]} {[%emt 00:00:45]} 15. Qc2 {[%clk 00:59:17]} {[%emt
00:02:07]} cxd5 {[%clk 01:16:41]} {[%emt 00:01:20]} 16. cxd5 {[%clk 00:58:36]}
{[%emt 00:01:11]} Qxa5 {[%clk 01:15:32]} {[%emt 00:01:40]} 17. Nd2 {[%clk
00:58:09]} {[%emt 00:00:56]} Bd7 {[%clk 01:14:43]} {[%emt 00:01:18]} 18. Rfb1
{[%clk 00:56:39]} {[%emt 00:02:00]} Rec8 {[%clk 01:14:54]} {[%emt 00:00:19]} 19.
Nc4 {[%clk 00:51:54]} {[%emt 00:05:15]} Qc7 {[%clk 01:10:56]} {[%emt 00:04:27]}
20. Nb6 {[%clk 00:48:14]} {[%emt 00:04:10]} Na4 {[%clk 01:08:58]} {[%emt
00:02:28]} 21. Nxa8 {[%clk 00:46:48]} {[%emt 00:01:57]} Rxa8 {[%clk 01:08:55]}
{[%emt 00:00:32]} 22. Rb3 {[%clk 00:37:14]} {[%emt 00:10:04]} Rc8 {[%clk
01:08:24]} {[%emt 00:01:01]} 23. Rc1 {[%clk 00:37:36]} {[%emt 00:00:09]} Qc4
{[%clk 01:06:15]} {[%emt 00:02:38]} 24. Qd1 {[%clk 00:28:00]} {[%emt 00:10:05]}
Nxc3 {[%clk 01:03:04]} {[%emt 00:03:41]} 25. Rbxc3 {[%clk 00:26:29]} {[%emt
00:02:01]} Qxc3 {[%clk 01:03:25]} {[%emt 00:00:10]} 26. Rxc3 {[%clk 00:26:55]}
{[%emt 00:00:04]} Rxc3 {[%clk 01:03:50]} {[%emt 00:00:05]} 27. Qa1 {[%clk
00:22:23]} {[%emt 00:05:01]} Rc4 {[%clk 01:03:25]} {[%emt 00:00:54]} 28. f3
{[%clk 00:20:51]} {[%emt 00:02:03]} Ba4 {[%clk 01:02:52]} {[%emt 00:01:03]} 29.
Qb2 {[%clk 00:18:57]} {[%emt 00:02:24]} b5 {[%clk 01:02:50]} {[%emt 00:00:32]}
30. Bf1 {[%clk 00:18:00]} {[%emt 00:01:27]} Rc5 {[%clk 01:02:18]} {[%emt
00:01:01]} 31. Bd3 {[%clk 00:17:17]} {[%emt 00:01:14]} Nd7 {[%clk 01:00:50]}
{[%emt 00:01:59]} 32. Qd2 {[%clk 00:16:26]} {[%emt 00:01:20]} Kf8 {[%clk
00:58:15]} {[%emt 00:03:05]} 33. h4 {[%clk 00:15:18]} {[%emt 00:01:38]} h6
{[%clk 00:58:07]} {[%emt 00:00:38]} 34. g4 {[%clk 00:12:19]} {[%emt 00:03:29]}
Ke7 {[%clk 00:55:17]} {[%emt 00:03:19]} 35. Kg2 {[%clk 00:11:26]} {[%emt
00:01:24]} Rc8 {[%clk 00:53:06]} {[%emt 00:02:42]} 36. Qa5 {[%clk 00:10:54]}
{[%emt 00:01:01]} Rb8 {[%clk 00:52:22]} {[%emt 00:01:13]} 37. Qc7 {[%clk
00:10:38]} {[%emt 00:00:46]} b4 {[%clk 00:50:50]} {[%emt 00:02:03]} 38. Qa5
{[%clk 00:09:55]} {[%emt 00:01:13]} Nb6 {[%clk 00:41:18]} {[%emt 00:10:03]} 39.
Qa7+ {[%clk 00:08:11]} {[%emt 00:02:14]} Nd7 {[%clk 00:41:24]} {[%emt
00:00:23]} 40. Qxa4 {[%clk 00:08:32]} {[%emt 00:00:09]} Nc5 {[%clk 00:41:46]}
{[%emt 00:00:08]} 41. Qc6 {[%clk 00:07:33]} {[%emt 00:01:29]} bxa3 {[%clk
00:41:34]} {[%emt 00:00:41]} 42. Bb5 {[%clk 00:04:06]} {[%emt 00:03:58]} Rb7
{[%clk 00:34:09]} {[%emt 00:07:55]} 43. g5 {[%clk 00:04:35]} {[%emt 00:00:01]}
hxg5 {[%clk 00:34:33]} {[%emt 00:00:06]} 44. hxg5 {[%clk 00:05:01]} {[%emt
00:00:05]} Rd7 {[%clk 00:34:41]} {[%emt 00:00:21]} 45. Qa8 {[%clk 00:04:51]}
{[%emt 00:00:40]} Rd8 {[%clk 00:33:52]} {[%emt 00:01:19]} 46. Qa7+ {[%clk
00:04:42]} {[%emt 00:00:40]} Nd7 {[%clk 00:32:36]} {[%emt 00:01:45]} 47. Qxa3
{[%clk 00:04:52]} {[%emt 00:00:20]} Rc8 {[%clk 00:29:07]} {[%emt 00:03:59]} 48.
Qa7 {[%clk 00:04:57]} {[%emt 00:00:24]} Rd8 {[%clk 00:29:12]} {[%emt 00:00:26]}
49. Qc7 {[%clk 00:05:20]} {[%emt 00:00:06]} f6 {[%clk 00:27:29]} {[%emt
00:02:14]} 50. g6 {[%clk 00:05:43]} {[%emt 00:00:07]} f5 {[%clk 00:26:52]}
{[%emt 00:01:07]} 51. exf5 {[%clk 00:05:30]} {[%emt 00:00:43]} Ra8 {[%clk
00:26:16]} {[%emt 00:01:06]} 52. Qxd7+ {[%clk 00:05:50]} {[%emt 00:00:10]} Kf6
{[%clk 00:26:41]} {[%emt 00:00:05]} 53. Qxd6+ {[%clk 00:05:42]} {[%emt
00:00:38]} Kg5 {[%clk 00:26:57]} {[%emt 00:00:14]} 54. Kg3 {[%clk 00:05:55]}
{[%emt 00:00:18]} Ra1 {[%clk 00:25:56]} {[%emt 00:01:30]} 55. Qe7+ {[%clk
00:06:14]} {[%emt 00:00:10]} Kxf5 {[%clk 00:26:14]} {[%emt 00:00:13]} 56. Bd3+
{[%clk 00:06:30]} {[%emt 00:00:14]} 1-0

[Event "Klubbmästerskap 2025 Tisdag"]
[Site "Linköping, Sweden"]
[Date "2025.02.04"]
[Round "3.3"]
[White "Andersson, Mats 1960"]
[Black "Rosenbecker, Daniel"]
[Result "1/2-1/2"]
[TimeControl "90 min + 30 sec/move"]
[WhiteTitle "FM"]
[BlackTitle "CM"]
[WhiteElo "2263"]
[BlackElo "2110"]

1. d4 {[%clk 01:30:48]} {[%emt 00:00:06]} d5 {[%clk 01:30:57]} {[%emt
00:00:08]} 2. Nf3 {[%clk 01:30:17]} {[%emt 00:01:00]} Nf6 {[%clk 01:31:22]}
{[%emt 00:00:06]} 3. c4 {[%clk 01:29:58]} {[%emt 00:00:48]} c6 {[%clk
01:31:48]} {[%emt 00:00:05]} 4. e3 {[%clk 01:29:47]} {[%emt 00:00:40]} e6
{[%clk 01:29:49]} {[%emt 00:02:30]} 5. Nbd2 {[%clk 01:29:10]} {[%emt 00:01:06]}
Nbd7 {[%clk 01:20:28]} {[%emt 00:09:51]} 6. b3 {[%clk 01:27:27]} {[%emt
00:02:12]} Bb4 {[%clk 01:18:15]} {[%emt 00:02:44]} 7. a3 {[%clk 01:18:42]}
{[%emt 00:09:15]} Bc3 {[%clk 01:18:17]} {[%emt 00:00:27]} 8. Rb1 {[%clk
01:18:52]} {[%emt 00:00:18]} Ne4 {[%clk 01:18:36]} {[%emt 00:00:14]} 9. Bd3
{[%clk 01:15:38]} {[%emt 00:03:44]} f5 {[%clk 01:17:55]} {[%emt 00:01:11]} 10.
O-O {[%clk 01:13:01]} {[%emt 00:03:06]} Ba5 {[%clk 01:13:41]} {[%emt 00:04:44]}
11. Qc2 {[%clk 01:12:47]} {[%emt 00:00:43]} O-O {[%clk 01:13:40]} {[%emt
00:00:32]} 12. b4 {[%clk 01:10:00]} {[%emt 00:03:17]} Bc7 {[%clk 01:12:52]}
{[%emt 00:01:18]} 13. Rd1 {[%clk 01:10:08]} {[%emt 00:00:22]} Ndf6 {[%clk
01:09:35]} {[%emt 00:03:47]} 14. Ne5 {[%clk 00:52:54]} {[%emt 00:17:43]} Bxe5
{[%clk 01:07:35]} {[%emt 00:02:31]} 15. dxe5 {[%clk 00:53:16]} {[%emt
00:00:07]} Ng4 {[%clk 01:07:33]} {[%emt 00:00:33]} 16. Bxe4 {[%clk 00:53:08]}
{[%emt 00:00:37]} fxe4 {[%clk 01:05:32]} {[%emt 00:02:32]} 17. Nxe4 {[%clk
00:52:15]} {[%emt 00:01:23]} Qh4 {[%clk 01:05:50]} {[%emt 00:00:12]} 18. h3
{[%clk 00:51:37]} {[%emt 00:01:07]} Nxe5 {[%clk 01:06:11]} {[%emt 00:00:09]} 19.
Nd6 {[%clk 00:47:38]} {[%emt 00:04:29]} Nxc4 {[%clk 00:51:56]} {[%emt
00:14:45]} 20. Rd4 {[%clk 00:39:19]} {[%emt 00:08:48]} Qe7 {[%clk 00:52:22]}
{[%emt 00:00:06]} 21. Nxc4 {[%clk 00:39:22]} {[%emt 00:00:26]} e5 {[%clk
00:52:49]} {[%emt 00:00:03]} 22. Nxe5 {[%clk 00:34:06]} {[%emt 00:05:46]} Qxe5
{[%clk 00:53:13]} {[%emt 00:00:06]} 23. Qe2 {[%clk 00:29:07]} {[%emt 00:05:27]}
Bf5 {[%clk 00:44:52]} {[%emt 00:08:53]} 24. Bb2 {[%clk 00:20:21]} {[%emt
00:09:16]} Be4 {[%clk 00:45:17]} {[%emt 00:00:05]} 25. Rf1 {[%clk 00:20:25]}
{[%emt 00:00:24]} Qg5 {[%clk 00:40:23]} {[%emt 00:05:26]} 26. f3 {[%clk
00:14:18]} {[%emt 00:06:36]} Bf5 {[%clk 00:40:49]} {[%emt 00:00:05]} 27. Kh2
{[%clk 00:14:01]} {[%emt 00:00:46]} Rae8 {[%clk 00:40:36]} {[%emt 00:00:45]} 28.
Re1 {[%clk 00:14:19]} {[%emt 00:00:11]} h5 {[%clk 00:34:17]} {[%emt 00:06:49]}
29. Qf2 {[%clk 00:14:10]} {[%emt 00:00:38]} Qh6 {[%clk 00:27:32]} {[%emt
00:07:16]} 30. h4 {[%clk 00:13:03]} {[%emt 00:01:34]} Bc8 {[%clk 00:20:51]}
{[%emt 00:07:14]} 31. Bc3 {[%clk 00:07:09]} {[%emt 00:06:22]} Rf7 {[%clk
00:17:35]} {[%emt 00:03:47]} 32. Bd2 {[%clk 00:06:26]} {[%emt 00:01:12]} Re4
{[%clk 00:14:38]} {[%emt 00:03:28]} 33. Bc3 {[%clk 00:05:05]} {[%emt 00:01:52]}
Qd6+ {[%clk 00:14:40]} {[%emt 00:00:28]} 34. Qg3 {[%clk 00:05:18]} {[%emt
00:00:17]} Qxg3+ {[%clk 00:14:13]} {[%emt 00:00:58]} 35. Kxg3 {[%emt 00:00:05]}
1/2-1/2

[Event "Klubbmästerskap 2025 Tisdag"]
[Site "Linköping, Sweden"]
[Date "2025.02.04"]
[Round "3.4"]
[White "Thyberg, André"]
[Black "Pavlic, Oliver"]
[Result "1-0"]
[TimeControl "90 min + 30 sec/move"]
[WhiteElo "1961"]
[BlackElo "1950"]

1. e4 {[%clk 01:30:27]} {[%emt 00:00:33]} e6 {[%clk 01:30:54]} {[%emt
00:00:06]} 2. d3 {[%clk 01:30:32]} {[%emt 00:00:25]} d5 {[%clk 01:30:44]}
{[%emt 00:00:40]} 3. Nd2 {[%clk 01:30:51]} {[%emt 00:00:10]} Nf6 {[%clk
01:30:57]} {[%emt 00:00:18]} 4. Ngf3 {[%clk 01:31:12]} {[%emt 00:00:09]} Nc6
{[%clk 01:31:10]} {[%emt 00:00:18]} 5. c3 {[%clk 01:31:12]} {[%emt 00:00:30]}
a5 {[%clk 01:31:08]} {[%emt 00:00:32]} 6. e5 {[%clk 01:31:18]} {[%emt
00:00:24]} Nd7 {[%clk 01:31:28]} {[%emt 00:00:09]} 7. d4 {[%clk 01:31:30]}
{[%emt 00:00:18]} f6 {[%clk 01:31:13]} {[%emt 00:00:46]} 8. Bb5 {[%clk
01:31:38]} {[%emt 00:00:22]} fxe5 {[%clk 01:28:53]} {[%emt 00:02:50]} 9. dxe5
{[%clk 01:31:58]} {[%emt 00:00:10]} Be7 {[%clk 01:28:35]} {[%emt 00:00:48]} 10.
O-O {[%clk 01:32:07]} {[%emt 00:00:21]} O-O {[%clk 01:27:06]} {[%emt 00:02:01]}
11. Re1 {[%clk 01:31:47]} {[%emt 00:00:50]} Nb6 {[%clk 01:25:23]} {[%emt
00:02:13]} 12. Nb3 {[%clk 01:28:36]} {[%emt 00:03:40]} Bd7 {[%clk 01:24:16]}
{[%emt 00:01:37]} 13. Bd3 {[%clk 01:27:03]} {[%emt 00:02:03]} a4 {[%clk
01:21:47]} {[%emt 00:02:59]} 14. Nbd4 {[%clk 01:25:37]} {[%emt 00:01:56]} Nxd4
{[%clk 01:17:40]} {[%emt 00:04:38]} 15. Nxd4 {[%clk 01:25:46]} {[%emt
00:00:20]} Qe8 {[%clk 01:17:03]} {[%emt 00:01:07]} 16. Qg4 {[%clk 01:19:20]}
{[%emt 00:06:56]} Qf7 {[%clk 01:13:35]} {[%emt 00:03:58]} 17. Nf3 {[%clk
01:16:12]} {[%emt 00:03:38]} c5 {[%clk 01:08:45]} {[%emt 00:05:21]} 18. Bg5
{[%clk 00:58:34]} {[%emt 00:18:09]} Rae8 {[%clk 01:02:08]} {[%emt 00:07:06]} 19.
Bxe7 {[%clk 00:53:10]} {[%emt 00:05:54]} Qxe7 {[%clk 01:02:11]} {[%emt
00:00:26]} 20. Ng5 {[%clk 00:53:07]} {[%emt 00:00:33]} g6 {[%clk 00:47:36]}
{[%emt 00:15:06]} 21. h4 {[%clk 00:50:35]} {[%emt 00:03:00]} Qg7 {[%clk
00:45:10]} {[%emt 00:02:57]} 22. h5 {[%clk 00:49:14]} {[%emt 00:01:50]} h6
{[%clk 00:37:44]} {[%emt 00:07:56]} 23. Bxg6 {[%clk 00:38:25]} {[%emt
00:11:20]} hxg5 {[%clk 00:36:50]} {[%emt 00:01:25]} 24. Qxg5 {[%clk 00:38:31]}
{[%emt 00:00:23]} Rf5 {[%clk 00:35:13]} {[%emt 00:02:07]} 25. Qg4 {[%clk
00:37:36]} {[%emt 00:01:25]} Kf8 {[%clk 00:30:16]} {[%emt 00:05:27]} 26. Re3
{[%clk 00:36:34]} {[%emt 00:01:32]} Nc4 {[%clk 00:28:28]} {[%emt 00:02:18]} 27.
h6 {[%clk 00:34:39]} {[%emt 00:02:25]} Qxh6 {[%clk 00:27:29]} {[%emt 00:01:29]}
28. Rh3 {[%clk 00:34:36]} {[%emt 00:00:33]} Qg7 {[%clk 00:12:33]} {[%emt
00:15:26]} 29. Rh7 {[%clk 00:31:46]} {[%emt 00:03:20]} Qxh7 {[%clk 00:11:55]}
{[%emt 00:01:08]} 30. Bxh7 {[%clk 00:31:55]} {[%emt 00:00:21]} Rxe5 {[%clk
00:12:12]} {[%emt 00:00:13]} 31. b3 {[%clk 00:30:12]} {[%emt 00:02:13]} axb3
{[%clk 00:12:11]} {[%emt 00:00:31]} 32. axb3 {[%clk 00:30:34]} {[%emt
00:00:08]} Nb6 {[%clk 00:11:57]} {[%emt 00:00:44]} 33. Qf4+ {[%clk 00:30:54]}
{[%emt 00:00:09]} 1-0

[Event "Klubbmästerskap 2025 Tisdag"]
[Site "Linköping, Sweden"]
[Date "2025.02.04"]
[Round "3.5"]
[White "Modéer, Björn"]
[Black "Jakobsson, Leif"]
[Result "1-0"]
[TimeControl "90 min + 30 sec/move"]
[WhiteElo "1700"]
[BlackElo "1714"]

1. d4 {[%clk 01:30:57]} {[%emt 00:00:01]} Nf6 {[%clk 01:30:33]} {[%emt
00:00:27]} 2. Bf4 {[%clk 01:31:19]} {[%emt 00:00:08]} e6 {[%clk 01:30:10]}
{[%emt 00:00:54]} 3. e3 {[%clk 01:31:33]} {[%emt 00:00:16]} d5 {[%clk
01:29:56]} {[%emt 00:00:43]} 4. Nd2 {[%clk 01:31:39]} {[%emt 00:00:24]} c5
{[%clk 01:29:05]} {[%emt 00:01:20]} 5. c3 {[%clk 01:31:59]} {[%emt 00:00:11]}
b6 {[%clk 01:27:10]} {[%emt 00:02:26]} 6. Ngf3 {[%clk 01:30:43]} {[%emt
00:01:45]} Ba6 {[%clk 01:24:10]} {[%emt 00:03:30]} 7. Bxa6 {[%clk 01:28:53]}
{[%emt 00:02:20]} Nxa6 {[%clk 01:21:58]} {[%emt 00:02:42]} 8. Qa4+ {[%clk
01:27:48]} {[%emt 00:01:35]} Nd7 {[%clk 01:17:37]} {[%emt 00:04:51]} 9. Qxa6
{[%clk 01:27:33]} {[%emt 00:00:44]} cxd4 {[%clk 01:17:03]} {[%emt 00:01:04]} 10.
exd4 {[%clk 01:27:32]} {[%emt 00:00:32]} Be7 {[%clk 01:16:23]} {[%emt
00:01:09]} 11. Ne5 {[%clk 01:26:15]} {[%emt 00:01:47]} Nxe5 {[%clk 01:15:24]}
{[%emt 00:01:26]} 12. Bxe5 {[%clk 01:26:08]} {[%emt 00:00:41]} O-O {[%clk
01:14:37]} {[%emt 00:01:17]} 13. O-O {[%clk 01:24:38]} {[%emt 00:01:59]} f6
{[%clk 01:10:20]} {[%emt 00:04:47]} 14. Bg3 {[%clk 01:22:50]} {[%emt 00:02:18]}
g5 {[%clk 01:06:39]} {[%emt 00:04:10]} 15. Qe2 {[%clk 01:21:58]} {[%emt
00:01:23]} Qd7 {[%clk 01:06:10]} {[%emt 00:00:59]} 16. Rae1 {[%clk 01:21:00]}
{[%emt 00:01:28]} Kf7 {[%clk 01:06:02]} {[%emt 00:00:37]} 17. f4 {[%clk
01:18:26]} {[%emt 00:03:06]} f5 {[%clk 01:04:00]} {[%emt 00:02:31]} 18. Nf3
{[%clk 01:15:15]} {[%emt 00:03:41]} Kg8 {[%clk 00:49:58]} {[%emt 00:14:31]} 19.
Qxe6+ {[%clk 01:11:21]} {[%emt 00:04:24]} Qxe6 {[%clk 00:50:06]} {[%emt
00:00:22]} 20. Rxe6 {[%clk 01:11:42]} {[%emt 00:00:10]} gxf4 {[%clk 00:48:37]}
{[%emt 00:01:59]} 21. Bxf4 {[%clk 01:10:33]} {[%emt 00:01:40]} Bf6 {[%clk
00:46:04]} {[%emt 00:03:02]} 22. Rfe1 {[%clk 01:02:33]} {[%emt 00:08:30]} Kf7
{[%clk 00:45:09]} {[%emt 00:01:24]} 23. Bg5 {[%clk 00:58:38]} {[%emt 00:04:26]}
Kg6 {[%clk 00:41:38]} {[%emt 00:04:00]} 24. Bxf6 {[%clk 00:53:12]} {[%emt
00:05:57]} Rxf6 {[%clk 00:40:50]} {[%emt 00:01:17]} 25. Rxf6+ {[%clk 00:52:23]}
{[%emt 00:01:20]} Kxf6 {[%clk 00:41:06]} {[%emt 00:00:13]} 26. Re5 {[%clk
00:52:17]} {[%emt 00:00:37]} Rd8 {[%clk 00:39:54]} {[%emt 00:01:42]} 27. Nh4
{[%clk 00:50:57]} {[%emt 00:01:50]} f4 {[%clk 00:39:48]} {[%emt 00:00:35]} 28.
Rf5+ {[%clk 00:50:41]} {[%emt 00:00:47]} Ke6 {[%clk 00:39:17]} {[%emt
00:01:00]} 29. Rxf4 {[%clk 00:50:05]} {[%emt 00:01:06]} a5 {[%clk 00:37:16]}
{[%emt 00:02:31]} 30. Nf5 {[%clk 00:47:47]} {[%emt 00:02:48]} b5 {[%clk
00:36:03]} {[%emt 00:01:44]} 31. Ne3 {[%clk 00:45:33]} {[%emt 00:02:44]} b4
{[%clk 00:35:48]} {[%emt 00:00:45]} 32. Rh4 {[%clk 00:44:39]} {[%emt 00:01:25]}
bxc3 {[%clk 00:35:28]} {[%emt 00:00:49]} 33. bxc3 {[%clk 00:44:34]} {[%emt
00:00:34]} Rc8 {[%clk 00:34:01]} {[%emt 00:01:57]} 34. Rh6+ {[%clk 00:43:58]}
{[%emt 00:01:07]} 1-0